{"text_format":"1","workbook":"xlsx","n_sheets":1,"sheets":["TDSheet"],"not_rendered":{"charts":0,"images":0,"macros":0,"external_links":0,"defined_names":0,"comments":0,"pivot_tables":0},"unopened":[],"bounds":{"document_bytes":16777216,"sheet_cells":100000,"rows_first":2000,"rows_last":500,"rows_between":2000,"halvings":0,"cell_chars":16384,"cell_head_chars":4096},"cells_cut":0,"cells_raw":0,"read":"whole","date_system":"1900"}

{"sheet":"TDSheet","index":0,"n_rows":73,"n_cols":16,"rows_kept":73,"cut":false,"hidden":false,"merged":[[4,0,4,16],[5,0,5,16],[7,1,7,2],[7,4,7,16],[8,1,8,2],[8,4,8,16],[12,1,12,2],[12,7,12,16],[14,1,14,16],[15,1,15,6],[15,7,15,12],[15,13,15,15],[9,1,9,2],[9,4,9,16],[10,1,10,2],[10,4,10,16],[11,1,11,2],[11,4,11,5],[11,6,11,16],[16,15,16,16],[17,0,17,2],[17,3,17,4],[17,5,17,6],[17,7,17,8],[17,9,17,10],[17,11,17,12],[17,15,17,16],[16,0,16,2],[16,3,16,4],[16,5,16,6],[16,7,16,8],[16,9,16,10],[16,11,16,12],[19,14,20,14],[19,15,20,16],[21,0,21,1],[21,4,21,10],[21,11,21,12],[21,15,21,16],[19,0,20,1],[19,2,20,2],[19,3,20,3],[19,4,20,10],[19,11,20,12],[19,13,20,13],[29,0,29,9],[29,11,29,12],[29,13,29,14],[29,15,29,16],[30,0,30,9],[30,11,30,12],[30,13,30,14],[30,15,30,16],[22,0,22,1],[22,4,22,10],[22,11,22,12],[22,15,22,16],[23,0,23,10],[23,11,23,12],[23,15,23,16],[31,0,31,10],[31,11,31,12],[31,13,31,14],[31,15,31,16],[37,0,38,1],[37,2,38,2],[37,3,38,6],[37,7,38,7],[37,8,38,10],[37,11,38,12],[40,0,40,1],[40,3,40,16],[41,0,41,16],[42,3,42,6],[42,8,42,10],[42,11,42,12],[42,13,42,14],[42,15,42,16],[37,13,38,14],[37,15,38,16],[39,0,39,1],[39,3,39,6],[39,8,39,10],[39,11,39,12],[39,13,39,14],[39,15,39,16],[45,0,45,16],[46,3,46,6],[46,8,46,10],[46,11,46,12],[46,13,46,14],[46,15,46,16],[43,3,43,6],[43,8,43,10],[43,11,43,12],[43,13,43,14],[43,15,43,16],[44,0,44,16],[47,3,47,6],[47,8,47,10],[47,11,47,12],[47,13,47,14],[47,15,47,16],[48,3,48,6],[48,8,48,10],[48,11,48,12],[48,13,48,14],[48,15,48,16],[51,3,51,6],[51,8,51,10],[51,11,51,12],[51,13,51,14],[51,15,51,16],[52,0,52,16],[49,3,49,6],[49,8,49,10],[49,11,49,12],[49,13,49,14],[49,15,49,16],[50,3,50,6],[50,8,50,10],[50,11,50,12],[50,13,50,14],[50,15,50,16],[55,3,55,6],[55,8,55,10],[55,11,55,12],[55,13,55,14],[55,15,55,16],[56,0,56,16],[53,0,53,16],[54,3,54,6],[54,8,54,10],[54,11,54,12],[54,13,54,14],[54,15,54,16],[59,3,59,6],[59,8,59,10],[59,11,59,12],[59,13,59,14],[59,15,59,16],[60,0,60,16],[57,0,57,16],[58,3,58,6],[58,8,58,10],[58,11,58,12],[58,13,58,14],[58,15,58,16],[68,1,68,4],[69,6,69,8],[71,1,71,4],[72,6,72,8],[63,15,64,16],[65,0,65,1],[65,2,65,4],[65,15,65,16],[66,0,66,4],[66,15,66,16],[63,0,64,1],[63,2,64,4],[63,5,64,5],[63,6,63,8],[63,9,63,11],[63,12,63,14]]}
[]
[]
[]
[]
["ЗВІТ"]
["Про виконання паспорта бюджетної програми місцевого бюджету станом на 01.01.2019 року"]
[]
["1.",910160,null,null,"Управління соціальних служб для сім’ї, дітей та молоді Луцької міської ради"]
[null,"(КПКВК МБ)",null,null,"(найменування головного розпорядника)"]
["2.",{"$f":"B8","v":910160},null,null,"Управління соціальних служб для сім’ї, дітей та молоді Луцької міської ради"]
[null,"(КПКВК МБ)",null,null,"(найменування відповідального виконавця)"]
["3.",{"$f":"B8","v":910160},null,null,"0111",null,"Керівництво і управління у відповідній сфері у містах (місті Києві), селищах, селах, об'єднаних територіальних громадах"]
[null,"(КПКВК МБ)",null,null,"(КФКВК)",1,null,"(найменування бюджетної програми)"]
[]
["4.","Видатки та надання кредитів за бюджетною програмою за звітний період"]
[null,"Затверджено паспортом бюджетної програми",null,null,null,null,null,"Касові видатки (надані кредити)",null,null,null,null,null,"Відхилення"]
["Загальний фонд",null,null,"Спеціальний фонд",null,"разом",null,"Загальний фонд",null," Спеціальний фонд",null,"разом",null,"Загальний фонд","Спеціальний фонд","Разом"]
[3124500,null,null,30000,null,{"$f":"A18+D18","v":3154500},null,3118452.96,null,30000,null,{"$f":"H18+J18","v":3148452.96},null,{"$f":"F18-L18","v":6047.0400000000373},0,{"$f":"N18","v":6047.0400000000373}]
["5. Обсяги фінансування бюджетної програми за звітний період у розрізі підпрограм та завдань",null,null,null,null,null,null,null,null,null,null,null,null,null,null,"(грн) "]
["№ з/п",null,"КПКВК","КФКВК","Підпрограма/завдання бюджетної програми",null,null,null,null,null,null,"Затверджені паспортом загальний фонд",null,"Касові видатки загальний фонд","Відхилення","Пояснення щодо причин відхилення"]
[]
[1,null,2,3,4,null,null,null,null,null,null,5,null,6,7,8]
[1,null,910160,"0111","Керівництво і управління у відповідній сфері у містах, селищах, селах. ",null,null,null,null,null,null,{"$f":"F18","v":3154500},null,{"$f":"L18","v":3148452.96},{"$f":"L23-N23","v":6047.0400000000373}]
["Усього",null,null,null,null,null,null,null,null,null,null,{"$f":"L23","v":3154500},null,{"$f":"N23","v":3148452.96},{"$f":"O23","v":6047.0400000000373}]
[]
[]
[]
[]
["6. Видатки на реалізацію регіональних цільових програм, які виконуються в межах бюджетної програми, за звітний період:",null,null,null,null,null,null,null,null,null,null,null,null,null,null,"(грн) "]
["Назва\nрегіональної цільової програми та підпрограми",null,null,null,null,null,null,null,null,null,"КПКВК","загальний фонд",null,"спеціальний фонд",null,"Разом"]
[1,null,null,null,null,null,null,null,null,null,2,3,null,4,null,5]
["Усього"]
[]
[]
[]
["7. Результативні показники бюджетної програми у розрізі підпрограм і завдань:"]
[]
["№ з/п",null,"КПКВК","Показники",null,null,null,"Одиниця виміру","Джерело інформації",null,null,"Затверджені паспортом бюджетної програми за звітний період",null,"Виконано за звітний період (касові видатки/надані кредити)",null,"Відхилення"]
[]
[1,null,2,3,null,null,null,4,5,null,null,6,null,7,null,8]
[1,null,1110180,"Забезпечення виконання наданих законодавством повноважень з реалізації державної політики у сфері соціального захисту та соціальної підтримки дітей, молоді та різних категорій сімей, які перебувають у складних життєвих обставинах та потребують сторонньої допомоги"]
["затрат"]
[1,null,1110180,"Кількість управлінь соціальних служб для сім´ї, дітей та молоді",null,null,null,"одиниць","Рішення міської ради \" Про затвердження структури виконавчих органів\"",null,null,1,null,1,null,{"$f":"-(L43-N43)","v":0}]
[2,null,1110180,"Кількість штатних працівників",null,null,null,"осіб","Штатний розпис",null,null,13,null,15,null,{"$f":"-(L44-N44)","v":2}]
["Пояснення — без змін"]
["продукту"]
[1,null,1110180,"кількість дітей, молоді та сімей, яким надані індивідуальні соціальні послуги",null,null,null,"одиниць","звіт про проведення заходів",null,null,10097,null,13638,null,{"$f":"-(L47-N47)","v":3541}]
[2,null,1110180,"кількість прийомних сімей , дитячих будинків сімейного типу",null,null,null,"одиниць","звіт про проведення заходів",null,null,5,null,5,null,0]
[3,null,1110180,"кількість сімей , в яких виховуються діти - сироти та діти, позбавлені батьківського піклування",null,null,null,"одиниць","звіт про проведення заходів",null,null,145,null,137,null,-8]
[4,null,1110180,"кількість сімей, які опинились в складних життєвих обставинах,які перебувають на обліку в управління соціальних служб сім´ї, дітей та молоді",null,null,null,"одиниць","звіт про проведення заходів",null,null,281,null,289,null,8]
[5,null,1110180,"кількість сімей, які опинилися в складних життєвих обставинах і перебувають на обліку, охоплених соціальним супроводом",null,null,null,"одиниць","звіт про проведення заходів",null,null,14,null,9,null,-5]
[6,null,1110180,"кількість учасників заходів, проведених управлінням соціальних служб для сім´ї, дітей та молоді",null,null,null,"осіб","звіт про проведення заходів",null,null,15262,null,14897,null,-365]
["Пояснення — проведено більшу кулькість заходів."]
["ефективності"]
[1,null,1110180,"середні витрати на забезпечення діяльності одного працівника управління соціальних служб для сім'ї, дітей та молоді",null,null,null,"грн.","звіт",null,null,22.36,null,56.41,null,{"$f":"-(L55-N55)","v":34.049999999999997}]
[2,null,1110180,"середні витрати по утриманню управління соціальних служб для сім´ї, дітей та молоді на обслуговування одного учасника проведеного заходу, наданої соціальної послуги, здійсненого соціального супроводу ",null,null,null,"грн.","звіт про проведення заходів",null,null,8.75,null,11.02,null,{"$f":"-(L56-N56)","v":2.2699999999999996}]
["Пояснення — Збільшення маштабності заходів та проведення їх у святкові та вихідні дні"]
["якості"]
[1,null,1110180,"динамік  кількості осіб, яким надано соціальні послуги, порівняно з минулим роком",null,null,null,"%","звіт",null,null,100,null,135.07,null,{"$f":"-(L59-N59)","v":35.069999999999993}]
[2,null,1110180,"динаміка  кількості сімей та осіб, які перебувають у складних життєвих обставинах, знятих з соціального супроводу з позитивним результатом, порівняно з минулим роком",null,null,null,"%","звіт",null,null,100,null,100,null,{"$f":"-(L60-N60)","v":0}]
["Збільшення динаміки осіб яким надано соціальні послуги зумовило збільшення штатних одиниць управління, що дозволяє швидше та якісніше виконувати поставлені завдання. Скрутне економічне становище в державі нажаль призводить до збільшенням кількості сімей, які опиняються в складних життєвих обставинах. Працівниками управління всебічно проводяться заходи по контролю виконання батьківських обов'язків у таких сім'ях. А також щорічно до великих свят і перед навчальним роком даним сім'ям надається допомога. Також проводиться щоденна робота з громадськими організаціями де виховуються особливі діти, що дає змогу як найкраще соціалізувати дану категорію дітей у громаді."]
[]
["8. Джерела фінансування інвестиційних проектів у розрізі підпрограм (2)",null,null,null,null,null,null,null,null,null,null,null,null,null,null,"(грн) "]
["Код",null,"Найменування джерел надходжень",null,null,"КПКВК","Касові видатки станом на \n1 січня звітного періоду",null,null,"План видатків звітного періоду",null,null,"Прогноз видатків до кінця реалізації інвестиційного проекту (3)",null,null,"Пояснення, що характеризують джерела фінансування"]
[null,null,null,null,null,null,"загальний фонд","спеціальний фонд","Разом","загальний фонд","спеціальний фонд","Разом","загальний фонд","спеціальний фонд","Разом"]
[1,null,2,null,null,3,4,5,6,7,8,9,10,11,12,13]
["УСЬОГО:"]
[]
[null,"Начальник управління соціальних служб для сім’ї, дітей та молоді Луцької міської ради",null,null,null,null,null,null,null,null,null,null,null,"Л.В. Галан"]
[null,null,null,null,null,null,"(підпис)",null,null,null,null,null,null,"(ініціали та прізвище)"]
[]
[null,"Головний спеціаліст, бухгалтер управління соціальних служб для сім’ї, дітей та молоді Луцької міської ради",null,null,null,null,null,null,null,null,null,null,null,"К.В. Глинюк"]
[null,null,null,null,null,null,"(підпис)",null,null,null,null,null,null,"(ініціали та прізвище)"]